fUSD/lending_fUSD_20251117
["ID","MTS","AMOUNT","RATE_DAILY","PERIOD"]
[394245043,1763405439801,-218.7584385,0.00037973,2]
[394245045,1763405439810,-500.0,0.00037999,7]
[394245047,1763405439819,-277.30486045,0.00037999,120]
[394245049,1763405439830,-500.0,0.00037999,30]
[394245051,1763405439840,-500.0,0.00037999,120]
[394245053,1763405439852,-2000.0,0.00038,2]
[394245055,1763405439862,-150.0,0.00038003,7]
[394245057,1763405439871,-150.0,0.00038059,7]
[394245059,1763405439880,-159.74622,0.00038088,30]
[394245061,1763405439889,-150.0,0.00038111,7]
[394245063,1763405439899,-150.0,0.00038145,7]
[394245065,1763405439908,-1027.04,0.0003816,2]
[394245067,1763405439917,-150.0,0.0003817,7]
[394245069,1763405439926,-150.0,0.00038183,7]
[394245072,1763405439936,-150.0,0.00038188,7]
[394245073,1763405439945,-150.0,0.00038203,7]
[394245075,1763405439955,-150.0,0.00038203,7]
[394245077,1763405439965,-159.74622,0.00038288,30]
[394245079,1763405439975,-150.0,0.000383,30]
[394245081,1763405439985,-150.0,0.00038318,7]
[394245084,1763405439995,-150.0,0.00038318,7]
[394245086,1763405440005,-164.03,0.0003834,2]
[394245087,1763405440015,-150.0,0.00038363,7]
[394245090,1763405440025,-150.0,0.00038433,7]
[394245092,1763405440034,-150.0,0.00038433,7]
[394245094,1763405440044,-150.0,0.00038447,7]
[394245096,1763405440054,-150.0,0.00038466,7]
[394245098,1763405440063,-159.74622,0.00038488,30]
[394245100,1763405440074,-150.0,0.0003849,7]
[394245102,1763405440083,-6656.5763,0.00038524,2]
[394245104,1763405440093,-234.7706,0.00038524,2]
[394245106,1763405440102,-280.318,0.00038524,2]
[394245108,1763405440111,-357.7224,0.00038524,2]
[394245110,1763405440120,-52004.5912,0.00038524,2]
[394245112,1763405440129,-150.0,0.00038525,7]
[394245114,1763405440139,-150.0,0.00038543,7]
[394245116,1763405440149,-500.0,0.00038573,5]
[394245119,1763405440159,-500.0,0.00038573,5]
[394245121,1763405440169,-501.0431648,0.00038573,5]
[394245123,1763405440179,-280.90869368,0.00038573,5]
[394245125,1763405440191,-500.0,0.00038573,5]
[394245127,1763405440201,-500.0,0.00038573,5]
[394245130,1763405440210,-500.0,0.00038573,5]
[394245132,1763405440220,-150.0,0.00038577,7]
[394245134,1763405440230,-500.0,0.00038624,7]
[394245136,1763405440239,-500.0,0.00038624,7]
[394245138,1763405440248,-500.0,0.00038624,30]
[394245140,1763405440259,-500.0,0.00038624,30]
[394245142,1763405440268,-500.0,0.00038624,30]
[394245144,1763405440278,-500.0,0.00038624,120]
[394245146,1763405440287,-556.22510754,0.00038624,120]
[394245148,1763405440296,-150.0,0.00038663,7]
[394245150,1763405440307,-150.0,0.00038663,7]
[394245152,1763405440316,-150.0,0.00038663,7]
[394245154,1763405440328,-150.0,0.00038663,7]
[394245156,1763405440337,-159.74622,0.00038688,30]
[394245158,1763405440347,-150.0,0.00038706,7]
[394245161,1763405440356,-150.0,0.00038723,7]
[394245193,1763405440628,-150.0,0.00038762,7]
[394245195,1763405440638,-150.0,0.00038836,7]
[394245197,1763405440647,-150.0,0.00038836,7]
[394245199,1763405440657,-1027.04,0.0003888,2]
[394245201,1763405440666,-150.0,0.00038893,7]
[394245203,1763405440675,-150.0,0.00038893,7]
[394245205,1763405440686,-150.0,0.00038903,7]
[394245207,1763405440695,-150.0,0.00038939,7]
[394245208,1763405440704,-150.0,0.00038965,7]
[394245210,1763405440713,-150.0,0.00039008,7]
[394245212,1763405440722,-150.0,0.00039057,7]
[394245214,1763405440732,-150.0,0.00039058,7]
[394245216,1763405440741,-150.0,0.00039083,7]
[394245219,1763405440750,-159.74622,0.00039088,30]
[394245220,1763405440760,-150.0,0.00039095,7]
[394245222,1763405440769,-502.22144577,0.00039121,5]
[394245224,1763405440779,-498.76666353,0.00039121,5]
[394245226,1763405440788,-150.0,0.00039123,7]
[394245228,1763405440798,-150.0,0.00039123,7]
[394245230,1763405440807,-500.0,0.00039148,2]
[394245232,1763405440816,-150.0,0.00039181,7]
[394245234,1763405440826,-150.0,0.00039224,7]
[394245236,1763405440835,-150.0,0.00039263,7]
[394245238,1763405440844,-159.74622,0.00039288,30]
[394245240,1763405440853,-150.0,0.00039353,7]
[394245242,1763405440862,-150.0,0.00039353,7]
[394245244,1763405440871,-150.0,0.00039353,7]
[394245246,1763405440880,-150.0,0.00039353,7]
[394245248,1763405440889,-150.0,0.00039353,7]
[394245250,1763405440898,-150.0,0.00039353,7]
[394245252,1763405440907,-150.0,0.00039353,7]
[394245254,1763405440916,-150.0,0.00039353,7]
[394245256,1763405440925,-150.0,0.00039353,7]
[394245258,1763405440934,-150.0,0.00039353,7]
[394245260,1763405440943,-150.0,0.00039443,7]
[394245262,1763405440953,-150.0,0.00039483,7]
[394245264,1763405440962,-159.74622,0.00039488,30]
[394245266,1763405440971,-150.0,0.00039526,7]
[394245268,1763405440980,-150.0,0.00039584,7]
[394245270,1763405440989,-150.0,0.00039584,7]
[394245272,1763405440998,-1027.04,0.000396,30]
[394245274,1763405441007,-164.03,0.00039606,2]
[394245276,1763405441016,-150.0,0.00039612,7]
[394245278,1763405441026,-153.99,0.0003962,60]
[394245280,1763405441035,-150.0,0.00039624,7]
[394245282,1763405441044,-295.33278584,0.00039633,2]
[394245284,1763405441054,-150.0,0.00039649,7]
[394245286,1763405441063,-184.01,0.00039654,2]
[394245288,1763405441074,-298.89,0.00039666,14]
[394245290,1763405441083,-535.0,0.00039687,2]
[394245292,1763405441093,-159.74622,0.00039688,30]
[394245294,1763405441103,-150.0,0.00039699,7]
[394245296,1763405441112,-150.0,0.00039742,7]
[394245298,1763405441121,-298.88,0.00039759,14]
[394245300,1763405441131,-150.0,0.00039768,7]
[394245302,1763405441140,-504.89372768,0.00039793,30]
[394245304,1763405441150,-150.0,0.00039804,7]
[394245306,1763405441159,-150.0,0.00039814,7]
[394245308,1763405441170,-150.0,0.00039814,7]
[394245310,1763405441180,-150.0,0.00039871,7]
[394245312,1763405441189,-150.0,0.00039871,7]
[394245314,1763405441198,-159.74622,0.00039888,30]
[394245316,1763405441209,-200.0,0.000399,14]
[394245318,1763405441218,-150.0,0.00039945,7]
[394245320,1763405441228,-150.0,0.00039984,7]
[394245322,1763405441237,-500.0,0.0004,14]
[394245324,1763405441246,-1999.99,0.0004,120]
[394245326,1763405441255,-188.0,0.0004,2]
[394245328,1763405441265,-150.0,0.00040001,7]
[394245330,1763405441276,-150.0,0.00040044,7]
[394245332,1763405441287,-150.0,0.00040044,7]
[394245334,1763405441296,-150.0,0.00040044,7]
[394245336,1763405441305,-150.0,0.00040044,7]
[394245338,1763405441314,-604.0,0.00040045,7]
[394245340,1763405441324,-159.74622,0.00040088,30]
[394245341,1763405441333,-700.0,0.000401,14]
[394245343,1763405441342,-150.0,0.0004013,7]
[394245345,1763405441352,-1852.42,0.00040139,2]
[394245347,1763405441361,-501.82,0.00040139,30]
[394245349,1763405441370,-4045.83,0.00040139,2]
[394245351,1763405441380,-372.86,0.00040139,2]
[394245354,1763405441389,-150.0,0.00040164,7]
[394245355,1763405441399,-150.0,0.00040182,7]
[394245356,1763405441408,-1000.0,0.000402,14]
[394245357,1763405441418,-2740.0,0.000402,5]
[394245358,1763405441427,-150.0,0.00040216,7]
[394245359,1763405441437,-150.0,0.00040241,7]
[394245360,1763405441446,-150.0,0.0004026,7]
[394245361,1763405441456,-150.0,0.00040274,7]
[394245362,1763405441466,-150.0,0.00040274,7]
[394245364,1763405441476,-168.0,0.00040287,2]
[394245366,1763405441486,-159.74622,0.00040288,30]
[394245368,1763405441495,-2000.0,0.000403,2]
[394245370,1763405441505,-1300.0,0.000403,14]
[394245372,1763405441515,-150.0,0.00040344,7]
[394245374,1763405441524,-1004.0,0.00040362,30]
[394245376,1763405441533,-150.0,0.00040389,7]
[394245378,1763405441543,-150.0,0.00040389,7]
[394245380,1763405441552,-200.0,0.000404,14]
[394245382,1763405441561,-159.74622,0.00040488,30]
[394245384,1763405441571,-200.0,0.000405,14]
[394245386,1763405441582,-150.0,0.00040504,7]
[394245388,1763405441591,-150.0,0.00040504,7]
[394245390,1763405441601,-150.0,0.00040518,7]
[394245392,1763405441611,-150.0,0.00040524,7]
[394245394,1763405441620,-150.0,0.00040537,7]
[394245396,1763405441630,-150.0,0.00040562,7]
[394245398,1763405441639,-150.0,0.00040596,7]
[394245400,1763405441649,-200.0,0.000406,14]
[394245402,1763405441659,-150.0,0.00040648,7]
[394245404,1763405441668,-159.74622,0.00040688,30]
[394245406,1763405441678,-200.0,0.000407,14]
[394245408,1763405441688,-150.0,0.00040704,7]
[394245410,1763405441698,-150.0,0.00040734,7]
[394245412,1763405441707,-150.0,0.00040734,7]
[394245414,1763405441717,-150.0,0.00040734,7]
[394245416,1763405441726,-150.0,0.00040734,7]
[394245418,1763405441735,-150.0,0.00040777,7]
[394245420,1763405441745,-1004.0,0.00040778,30]
[394245422,1763405441754,-700.0,0.000408,14]
[394245424,1763405441763,-150.0,0.00040833,7]
[394245426,1763405441773,-449.66575549,0.00040856,2]
[394245428,1763405441782,-164.03,0.00040871,2]
[394245430,1763405441791,-150.0,0.00040884,7]
[394245432,1763405441801,-159.74622,0.00040888,30]
[394245433,1763405441811,-150.0,0.00040907,7]
[394245435,1763405441820,-150.0,0.00040907,7]
[394245437,1763405441831,-150.0,0.00040964,7]
[394245439,1763405441840,-150.0,0.00040964,7]
[394245441,1763405441850,-500.0,0.00041,120]
[394245443,1763405441860,-519.5,0.00041,120]
[394245445,1763405441869,-174.0,0.00041,90]
[394245447,1763405441879,-150.0,0.0004101,7]
[394245449,1763405441888,-150.0,0.00041036,7]
[394245451,1763405441898,-150.0,0.00041064,7]
[394245453,1763405441908,-150.0,0.00041079,7]
[394245455,1763405441917,-159.74622,0.00041088,30]
[394245457,1763405441927,-181.32021626,0.00041095,15]
[394245460,1763405441937,-500.0,0.00041096,120]
[394245461,1763405441947,-154.38,0.00041096,2]
[394245463,1763405441956,-150.0,0.00041096,120]
[394245465,1763405441965,-150.0,0.00041096,120]
[394245467,1763405441975,-167.39298682,0.00041096,120]
[394245469,1763405441984,-500.0,0.00041096,2]
[394245471,1763405441993,-500.0,0.00041096,2]
[394245473,1763405442002,-584.0,0.00041096,2]
[394245475,1763405442011,-500.0,0.00041096,120]
[394245477,1763405442021,-500.0,0.00041096,120]
[394245479,1763405442030,-500.0,0.00041096,120]
[394245481,1763405442039,-500.0,0.00041096,120]
[394245483,1763405442048,-500.0,0.00041096,120]
[394245485,1763405442058,-150.0,0.00041096,120]
[394245487,1763405442067,-500.0,0.00041096,120]
[394245488,1763405442079,-500.0,0.00041096,120]
[394245491,1763405442088,-398.52788284,0.00041096,120]
[394245492,1763405442097,-150.0,0.00041096,120]
[394245494,1763405442106,-500.0,0.00041096,120]
[394245496,1763405442116,-500.0,0.00041096,120]
[394245498,1763405442126,-500.0,0.00041096,120]
[394245500,1763405442135,-500.0,0.00041096,120]
[394245503,1763405442145,-500.0,0.00041096,120]
[394245505,1763405442155,-500.0,0.00041096,120]
[394245507,1763405442164,-500.0,0.00041096,120]
[394245509,1763405442173,-500.0,0.00041096,120]
[394245511,1763405442183,-234.0,0.00041096,120]
[394245513,1763405442195,-150.0,0.00041096,2]
[394245515,1763405442206,-165.87634847,0.00041096,120]
[394245517,1763405442215,-270.0,0.000411,2]
[394245518,1763405442224,-785.0,0.00041114,2]
[394245521,1763405442235,-150.0,0.00041129,30]
[394245522,1763405442245,-150.0,0.00041166,30]
[394245524,1763405442255,-500.77711163,0.00041173,10]
[394245526,1763405442264,-500.0,0.00041173,10]
[394245528,1763405442274,-500.0,0.00041173,10]
[394245530,1763405442285,-500.0,0.00041173,10]
[394245532,1763405442294,-175.70015174,0.00041173,10]
[394245535,1763405442303,-501.90512962,0.00041173,10]
[394245537,1763405442313,-500.0,0.00041173,10]
[394245539,1763405442324,-150.34604515,0.00041173,8]
[394245541,1763405442336,-282.74161039,0.00041173,10]
[394245543,1763405442346,-501.96917068,0.00041173,10]
[394245545,1763405442357,-500.0,0.00041173,10]
[394245547,1763405442368,-500.0,0.00041173,10]
[394245549,1763405442379,-500.0,0.00041173,10]
[394245551,1763405442390,-500.0,0.00041173,10]
[394245553,1763405442400,-15729.32984077,0.00041175,30]
[394245565,1763405442528,-35783.23437628,0.00041175,30]
[394245570,1763405442565,-272.22764281,0.00041175,30]
[394245572,1763405442582,-4983.05,0.00041175,30]
[394245695,1763405443874,-323.311332,0.00041175,30]
[394245697,1763405443886,-1624.99999997,0.00041175,30]
[394245699,1763405443900,-1954.38096,0.00041175,30]
[394245701,1763405443912,-751.7605547,0.00041175,30]
[394245704,1763405443924,-354.53810429,0.00041175,30]
[394245706,1763405443936,-617.14259629,0.00041175,30]
[394245723,1763405444111,-3266.20697937,0.00041175,30]
[394245725,1763405444124,-204836.95501352,0.00041175,30]
[394245727,1763405444133,-150.0,0.00041195,30]
[394245729,1763405444144,-150.0,0.00041195,30]
[394245731,1763405444155,-1004.0,0.00041195,30]
[394245733,1763405444166,-181.32021625,0.0004124,15]
[394245735,1763405444177,-150.0,0.00041245,30]
[394245738,1763405444195,-150.0,0.00041252,30]
[394245740,1763405444206,-1001.14942567,0.00041273,15]
[394245742,1763405444217,-218.77851269,0.00041273,2]
[394245743,1763405444227,-1000.0,0.00041273,2]
[394245745,1763405444238,-2500.0,0.00041273,2]
[394245747,1763405444248,-5000.0,0.00041273,120]
[394245749,1763405444258,-1001.14942564,0.00041285,15]
[394245752,1763405444271,-159.74622,0.00041288,30]
[394245754,1763405444283,-150.0,0.00041295,30]
[394245756,1763405444295,-1001.14942564,0.00041297,15]
[394245758,1763405444306,-1001.14942564,0.0004131,15]
[394245759,1763405444317,-1001.14942564,0.00041322,15]
[394245761,1763405444330,-1001.14942564,0.00041334,15]
[394245764,1763405444343,-1001.14942564,0.00041346,15]
[394245765,1763405444355,-1566.7281793,0.00041358,15]
[394245767,1763405444366,-1001.14942564,0.00041359,15]
[394245769,1763405444376,-20679.80516983,0.00041363,4]
[394245771,1763405444389,-1127.93495063,0.00041363,4]
[394245773,1763405444403,-4331.14901266,0.00041363,4]
[394245774,1763405444415,-565.24400008,0.00041363,4]
[394245781,1763405444497,-1155.26977686,0.00041363,4]
[394245783,1763405444511,-862.25351101,0.00041363,4]
[394245785,1763405444523,-1200.18309263,0.00041363,4]
[394245787,1763405444536,-1122.95862718,0.00041363,4]
[394245789,1763405444548,-20052.59034099,0.00041363,4]
[394246028,1763405447393,-177.12491979,0.00041095,28]
[394246030,1763405447406,-144.43758015,0.00041363,4]
[394246033,1763405447418,-1022.97973273,0.00041363,4]
[394246036,1763405447449,-348.425,0.00041363,4]
[394246132,1763405586864,1686.98056616,0.0002,2]
[394246133,1763405806015,250.0,0.00017,2]
[394246303,1763406631553,-2970.36,0.000338,2]
[394246304,1763406631662,-625.25668575,0.000338,2]
[394246305,1763406631674,-195.0,0.00033885,120]
[394246306,1763406631686,-250.0,0.0003389,2]
[394246307,1763406631697,-300.0,0.00033896,119]
[394246308,1763406631708,-195.0,0.00034254,120]
[394246309,1763406631719,-250.0,0.00034635,2]
[394246310,1763406631730,-300.0,0.00035314,2]
[394246311,1763406631741,-308.88,0.00035314,2]
[394246312,1763406631753,-250.0,0.00035924,2]
[394246313,1763406631766,-150.0,0.00035924,2]
[394246314,1763406631777,-166.66,0.00036716,30]
[394246315,1763406631788,-1011.3,0.0003704,5]
[394246316,1763406631804,-917.03146714,0.00037099,5]
[394246317,1763406631816,-917.03146714,0.000371,5]
[394246318,1763406631827,-863.05,0.00037102,5]
[394246319,1763406631839,-208.74,0.00037138,120]
[394246320,1763406631852,-871.72,0.00037176,5]
[394246321,1763406631864,-324.0,0.00037196,3]
[394246322,1763406631876,-1200.0,0.00037198,3]
[394246323,1763406631888,-300.0,0.00037198,3]
[394246324,1763406631901,-550.0,0.00037199,2]
[394246325,1763406631913,-324.07,0.000372,2]
[394246326,1763406631924,-2981.51,0.000372,10]
[394246327,1763406631936,-4284.77,0.000372,2]
[394246328,1763406632420,-9999.99,0.000372,2]
[394246329,1763406632451,-181.61613088,0.000372,120]
[394246330,1763406632468,-150.0,0.00037233,7]
[394246331,1763406632477,-150.0,0.00037233,7]
[394246332,1763406632486,-150.0,0.00037233,7]
[394246333,1763406632495,-150.0,0.00037233,7]
[394246334,1763406632505,-150.0,0.00037233,7]
[394246335,1763406632516,-150.0,0.00037233,7]
[394246336,1763406632526,-150.0,0.00037233,7]
[394246337,1763406632535,-150.0,0.00037233,7]
[394246338,1763406632544,-150.0,0.00037233,7]
[394246339,1763406632553,-150.0,0.00037233,7]
[394246340,1763406632562,-150.0,0.00037233,7]
[394246341,1763406632571,-150.0,0.00037233,7]
[394246342,1763406632580,-2500.0,0.0003726,120]
[394246343,1763406632593,-300.0,0.0003726,119]
[394246344,1763406632602,-195.0,0.0003726,120]
[394246345,1763406632612,-300.0,0.00037273,120]
[394246346,1763406632621,-250.0,0.00037273,2]
[394246347,1763406632631,-1731.33,0.00037482,2]
[394246348,1763406632640,-166.66,0.00037489,30]
[394246349,1763406632649,-150.0,0.00037551,7]
[394246350,1763406632659,-150.99,0.00037797,2]
[394246351,1763406632669,-150.0,0.00037869,7]
[394246352,1763406632678,-150.0,0.00038188,7]
[394246353,1763406632687,-166.66,0.00038262,30]
[394246354,1763406632696,-646.163,0.00038284,51]
[394246355,1763406632705,-1233.21,0.00038284,120]
[394246356,1763406632714,-1000.0,0.00038474,2]
[394246357,1763406632724,-2000.0,0.00038487,2]
[394246358,1763406632733,-150.0,0.00038506,7]
[394246359,1763406632743,-1000.0,0.00038533,120]
[394246360,1763406632752,-150.0,0.00038612,7]
[394246361,1763406632762,-516.98,0.00038657,2]
[394246362,1763406632772,-150.0,0.00038824,7]
[394246363,1763406632781,-150.0,0.00038905,2]
[394246364,1763406632791,-151.0,0.0003903,2]
[394246365,1763406632799,-151.0,0.0003903,2]
[394246366,1763406632808,-151.0,0.0003903,2]
[394246367,1763406632818,-151.0,0.0003903,2]
[394246368,1763406632828,-151.0,0.0003903,2]
[394246369,1763406632837,-151.0,0.0003903,2]
[394246370,1763406632847,-151.0,0.0003903,2]
[394246371,1763406632856,-151.0,0.0003903,2]
[394246372,1763406632865,-151.0,0.0003903,2]
[394246373,1763406632875,-151.0,0.0003903,2]
[394246374,1763406632884,-151.0,0.0003903,2]
[394246375,1763406632894,-151.0,0.0003903,2]
[394246376,1763406632903,-151.0,0.0003903,2]
[394246377,1763406632913,-151.0,0.0003903,2]
[394246378,1763406632922,-151.0,0.0003903,2]
[394246379,1763406632931,-151.0,0.0003903,2]
[394246380,1763406632941,-151.0,0.0003903,2]
[394246381,1763406632950,-151.0,0.0003903,2]
[394246382,1763406632959,-250.47608342,0.0003903,2]
[394246383,1763406632969,-531.95043136,0.00039034,120]
[394246384,1763406632978,-166.66,0.00039035,30]
[394246385,1763406632987,-300.0,0.00039037,7]
[394246386,1763406632997,-166.38745637,0.00039052,2]
[394246387,1763406633006,-910.60238146,0.00039053,2]
[394246388,1763406633019,-89.39761854,0.00039053,2]
[394246389,1763406633028,-609.99,0.00039053,2]
[394246390,1763406633037,-5000.0,0.00039053,120]
[394246391,1763406633046,-7140.89,0.00039053,2]
[394246392,1763406633056,-33287.75,0.00039053,2]
[394246393,1763406633065,-150.0,0.00039142,7]
[394246394,1763406633074,-2000.0,0.000392,2]
[394246395,1763406633083,-150.0,0.00039301,7]
[394246396,1763406633093,-150.0,0.00039301,7]
[394246397,1763406633102,-150.0,0.0003946,7]
[394246398,1763406633111,-197.0632474,0.00039554,2]
[394246399,1763406633120,-246.24,0.00039692,120]
[394246400,1763406633130,-150.0,0.00039779,7]
[394246401,1763406633139,-166.66,0.00039808,30]
[394246402,1763406633148,-896.35,0.00039812,2]
[394246403,1763406633158,-197.0632474,0.00039847,2]
[394246404,1763406633167,-150.99,0.00039897,2]
[394246405,1763406633176,-3566.2129,0.000399,2]
[394246406,1763406633185,-234.7706,0.000399,2]
[394246407,1763406633195,-4075.8433,0.000399,2]
[394246408,1763406633204,-26657.6129,0.000399,2]
[394246409,1763406633214,-161.44008381,0.000399,2]
[394246410,1763406633223,-500.0,0.00039973,5]
[394246411,1763406633232,-161.49360073,0.00039973,5]
[394246412,1763406633242,-500.0,0.00039973,5]
[394246413,1763406633252,-528.12485151,0.00039973,5]
[394246414,1763406633262,-500.0,0.00039973,5]
[394246415,1763406633272,-501.95355844,0.00039973,5]
[394246416,1763406633281,-326.66742499,0.00039973,2]
[394246417,1763406633290,-500.0,0.00039973,5]
[394246418,1763406633299,-228.14650797,0.00039973,5]
[394246419,1763406633308,-500.0,0.00039973,5]
[394246420,1763406633317,-150.0,0.00039991,7]
[394246421,1763406633327,-4063.09774392,0.00039997,15]
[394246422,1763406633337,-50000.0,0.0004,40]
[394246423,1763406633346,-150.0,0.00040097,7]
[394246424,1763406633355,-4063.09774391,0.00040141,15]
[394246425,1763406633364,-197.0632474,0.00040231,2]
[394246426,1763406633374,-4063.09774391,0.00040286,15]
[394246427,1763406633384,-197.0632474,0.00040296,2]
[394246428,1763406633393,-361.86,0.00040339,2]
[394246429,1763406633403,-938.0,0.00040362,30]
[394246430,1763406633412,-200.0,0.00040372,2]
[394246431,1763406633422,-150.0,0.00040415,7]
[394246432,1763406633432,-4063.09774391,0.0004043,15]
[394246433,1763406633441,-1000.0,0.00040518,2]
[394246434,1763406633450,-1000.0,0.00040521,5]
[394246435,1763406633460,-415.61370264,0.00040521,5]
[394246436,1763406633469,-322.24574374,0.00040536,50]
[394246437,1763406633477,-4063.09774391,0.00040574,15]
[394246438,1763406633487,-166.66,0.00040581,30]
[394246439,1763406633497,-416.61,0.00040658,2]
[394246440,1763406633506,-150.0,0.00040658,2]
[394246441,1763406633516,-170.5,0.00040658,2]
[394246442,1763406633525,-150.0,0.00040658,2]
[394246443,1763406633534,-150.0,0.00040658,2]
[394246444,1763406633543,-427.34,0.00040658,2]
[394246445,1763406633553,-300.0,0.00040658,2]
[394246446,1763406633562,-416.61,0.00040658,2]
[394246447,1763406633571,-169.45,0.00040658,2]
[394246448,1763406633581,-150.0,0.00040658,2]
[394246449,1763406633590,-169.45,0.00040658,2]
[394246450,1763406633604,-374.95,0.00040658,2]
[394246451,1763406633613,-169.45,0.00040658,2]
[394246452,1763406633622,-169.45,0.00040658,2]
[394246453,1763406633632,-169.45,0.00040658,2]
[394246454,1763406633643,-169.45,0.00040658,2]
[394246455,1763406633653,-169.45,0.00040658,2]
[394246456,1763406633662,-5663.27,0.000407,2]
[394246457,1763406633672,-197.0632474,0.00040711,2]
[394246458,1763406633681,-3245.4768987,0.00040719,15]
[394246459,1763406633693,-817.62084521,0.00040719,15]
[394246460,1763406633703,-150.0,0.00040733,7]
[394246461,1763406633712,-174.0,0.00040741,7]
[394246462,1763406633722,-938.0,0.00040778,30]
[394246463,1763406633731,-1000.0,0.00040822,14]
[394246464,1763406633741,-4063.09774391,0.00040863,15]
[394246465,1763406633751,-262.37715166,0.00040869,31]
[394246466,1763406633762,-500.0,0.00040869,7]
[394246467,1763406633772,-296.20257369,0.00040869,31]
[394246468,1763406633782,-500.0,0.00040869,15]
[394246469,1763406633792,-501.37804262,0.00040869,31]
[394246470,1763406633801,-301.68550408,0.00040869,31]
[394246471,1763406633811,-188.48702669,0.00040869,7]
[394246472,1763406633821,-500.0,0.00040869,31]
[394246473,1763406633831,-500.0,0.00040869,15]
[394246474,1763406633840,-500.0,0.00040869,31]
[394246475,1763406633850,-500.0,0.00040869,31]
[394246476,1763406633860,-500.0,0.00040869,31]
[394246477,1763406633870,-500.0,0.00040869,15]
[394246478,1763406633879,-500.0,0.00040869,31]
[394246479,1763406633889,-500.0,0.00040869,15]
[394246480,1763406633898,-500.0,0.00040869,31]
[394246481,1763406633908,-449.13255155,0.00040869,15]
[394246482,1763406633918,-500.0,0.00040869,31]
[394246483,1763406633928,-500.0,0.00040869,31]
[394246484,1763406633937,-500.0,0.00040869,31]
[394246485,1763406633947,-500.0,0.00040869,31]
[394246486,1763406633956,-500.0,0.00040869,31]
[394246487,1763406633966,-500.0,0.00040869,31]
[394246488,1763406633975,-500.0,0.00040869,31]
[394246489,1763406633984,-500.0,0.00040869,31]
[394246490,1763406633993,-500.0,0.00040869,31]
[394246491,1763406634002,-500.0,0.00040869,31]
[394246492,1763406634016,-500.0,0.00040869,31]
[394246493,1763406634025,-500.0,0.00040869,31]
[394246494,1763406634034,-500.0,0.00040869,31]
[394246495,1763406634043,-500.0,0.00040869,31]
[394246496,1763406634051,-486.09249228,0.00040869,31]
[394246498,1763406637470,-13.90750772,0.00040869,31]
[394246499,1763406637482,-500.0,0.00040869,31]
[394246500,1763406637492,-500.0,0.00040869,31]
[394246501,1763406637503,-110.56259577,0.00040869,31]
[394246502,1763406637529,-254.5888593,0.00040869,31]
[394246503,1763406637539,-500.0,0.00040869,31]
[394246504,1763406637549,-500.0,0.00040869,31]
[394246505,1763406637559,-500.0,0.00040869,31]
[394246506,1763406637568,-500.0,0.00040869,31]
[394246507,1763406637579,-500.0,0.00040869,31]
[394246508,1763406637597,-224.3211407,0.00040869,31]
[394246509,1763406637906,-275.6788593,0.00040869,31]
[394246510,1763406637916,-200.0,0.00040869,31]
[394246511,1763406637926,-608.0,0.00040871,2]
[394246512,1763406637935,-72.48451678,0.00040871,2]